Cogmind - Beta 14 @@@ ROGUE MODE // 2024.09.13 @ 12:07:19 Player: Dull Result: Destroyed by G-34 Mercenary with Small Laser Performance ------------- Evolutions (0) 0 Regions Visited (2) 400 Robots Destroyed (29) 145 Value Destroyed (692) 692 Prototype IDs (2) 40 Alien Tech Used (0) 0 Bonus (0) 0 TOTAL SCORE: 1277 Bonus ------- None Cogmind --------- Core Integrity 0/250 Matter 300/300 Energy 250/250 System Corruption 1% Temperature Cool (15) Movement Treading (240) Ox1 Location -10/Mines Parts ------- > --- POWER (1) -------- Ion Engine > --- PROPULSION (2) --- Light Treads Light Treads > --- UTILITY (2) ------ Heat Sink High-capacity Storage Unit > --- WEAPON (2) ------- Particle Gun Mining Claw > --- INVENTORY (20) --- Ion Engine Ion Engine Aluminum Leg Wheel Wheel Heat Sink Visual Processing Unit Sensor Array Signal Interpreter Improved Targeting Computer Improved Targeting Computer Reactive Plating High-powered Tractor Beam EM Pulse Gun Heavy EM Pulse Gun Medium Laser Small Laser Grenade Launcher Rocket Launcher Missile Launcher Peak State ------------ > --- POWER ------------ Ion Engine > --- PROPULSION ------- Light Treads Light Treads > --- UTILITY ---------- Heat Sink High-capacity Storage Unit > --- WEAPON ----------- Particle Gun Grenade Launcher > --- INVENTORY -------- Ion Engine Aluminum Leg Aluminum Leg Wheel Wheel Heat Sink Visual Processing Unit Sensor Array Signal Interpreter Improved Targeting Computer Improved Targeting Computer Reactive Plating High-powered Tractor Beam EM Pulse Gun Heavy EM Pulse Gun Medium Laser Small Laser Rocket Launcher Missile Launcher Mining Claw [Rating: 11] Favorites ----------- Power Light Ion Engine Engine Light Ion Engine Propulsion Light Treads Treads Light Treads Leg Aluminum Leg Utility High-capacity Storage Unit Device Heat Sink Storage High-capacity Storage Unit Protection Light Armor Plating Weapon Assault Rifle Energy Gun Small Laser Ballistic Gun Assault Rifle Launcher Grenade Launcher Slashing Weapon Mining Claw Build | -11 -10 -10 ------- Run | Yrd Mat Min Slots Evolved . | . . . Power . | . . . Propulsion . | . . . Utility . | . . . Weapon . | . . . Parts Attached 19 | 2 5 12 Power 4 | . . 4 Engine 4 | . . 4 Core . | . . . Reactor . | . . . Propulsion 3 | 2 1 . Treads 3 | 2 1 . Leg . | . . . Wheel . | . . . Hover . | . . . Flight . | . . . Utility 6 | . 2 4 Device 4 | . . 4 Storage 1 | . 1 . Processor . | . . . Hackware . | . . . Protection 1 | . 1 . Artifact . | . . . Weapon 6 | . 2 4 Energy Gun 4 | . 2 2 Energy Cannon . | . . . Ballistic Gun . | . . . Ballistic Cannon . | . . . Launcher 1 | . . 1 Special Weapon . | . . . Impact Weapon . | . . . Slashing Weapon 1 | . . 1 Piercing Weapon . | . . . Special Melee Weapon . | . . . Unidentified Prototypes . | . . . Parts Lost 3 | . 2 1 Power . | . . . Propulsion . | . . . Utility 1 | . . 1 Weapon 2 | . 2 . Highest Loss Streak 1 | . 1 1 To Critical Strikes 1 | . 1 . Average Slot Usage (%) 99 | . 99 99 Engine 14 | . 14 14 Treads 28 | . 28 28 Device 2 | . . 4 Storage 15 | . 16 14 Protection 10 | . 10 9 Energy Gun 10 | . 6 14 Ballistic Gun 10 | . 21 . Launcher 5 | . . 11 Slashing Weapon 1 | . . 2 Peak Build Rating 11 | 6 9 11 Average Rating 9 | 6 8 9 On Entrance 7 | 6 6 9 Naked Turns . | . . . Heaviest Build 54 | 12 52 54 Greatest Support 40 | 40 40 40 Greatest Overweight (x) 1 | . 1 1 Average Overweight (x) . | . . 1 Largest Inventory Capacity 20 | 8 20 20 Average Capacity 19 | 8 19 20 Most Carried 20 | 6 20 20 Average Carried 17 | 6 14 19 Final Capacity 20 | 8 20 20 Final Carried 20 | 6 20 20 Class Distribution -------------------- 83% | Mutant 16% | Scavenger-Mutant Dominant Class ---------------- Mutant | -10/Materials Mutant | -10/Mines Resources | -11 -10 -10 ----------- Run | Yrd Mat Min Matter Collected 777 | 200 285 292 Remotely . | . . . Salvage Created 858 | . 354 504 Parts 49 | . 20 29 Haulers Intercepted 1 | . 1 . Recyclers Shooed . | . . . Parts Field Recycled . | . . . Retrieved Matter . | . . . Parts Self-Destructed . | . . . Prevented . | . . . Kills | -11 -10 -10 ------- Run | Yrd Mat Min Combat Hostiles Destroyed 24 | . 9 15 Guns 17 | . 9 8 AOE 7 | . . 7 Classes Destroyed 8 | . 4 4 Worker 1 | . . 1 Tunneler 2 | . . 2 Hauler 1 | . 1 . Recycler 1 | . . 1 Watcher 1 | . 1 . Swarmer 7 | . 4 3 Grunt 16 | . 5 11 Assembled 1 | . . 1 Best Kill Streak 4 | . 3 4 Combat Bots Only 3 | . 3 3 Max Kills in Single Turn 2 | . 1 2 Gunslinging . | . . . Exploded 2 | . . 2 Melee . | . . . Uniques/NPCs Destroyed . | . . . Combat | -11 -10 -10 -------- Run | Yrd Mat Min Hostile Shots Fired 111 | . 58 53 Missed 21 | . 6 15 Damage Taken 1025 | . 519 506 Core 252 | . 90 162 Absorbed by Shields . | . . . Core Remaining (%) 100 | 100 . . Volleys Fired 77 | . 41 36 Largest 2 | . 2 2 Hottest 95 | . 60 95 Shots Fired 133 | . 80 53 Gun 118 | . 80 38 Cannon . | . . . Launcher 15 | . . 15 Special . | . . . Kinetic 68 | . 68 . Thermal 50 | . 12 38 Explosive 15 | . . 15 Electromagnetic . | . . . Robot Hit Streak 26 | . 10 26 Robot Miss Streak 4 | . 4 3 Penetration Max . | . . . Secondary Targets 1 | . 1 . Max Gunslinging Chain 1 | . 1 . Shots Hit Robots 80 | . 48 32 Core Hits 49 | . 19 30 Critical Kills . | . . . Critical Parts Destroyed . | . . . Critical Strikes 1 | . . 1 Burn 1 | . . 1 Melee Attacks 3 | . . 3 Impact . | . . . Slashing 3 | . . 3 Piercing . | . . . Sneak Attacks . | . . . Combat Hostiles . | . . . Follow-up Attacks . | . . . Damage Inflicted 1810 | . 603 1207 Guns 941 | . 595 346 Cannons . | . . . Explosions 861 | . . 861 Melee . | . . . Ramming 8 | . 8 . Kinetic 531 | . 531 . Thermal 410 | . 64 346 Explosive 861 | . . 861 Electromagnetic . | . . . Impact . | . . . Slashing . | . . . Piercing . | . . . Highest Corruption 1 | . 1 1 Average Corruption 1 | . 1 1 Corruption Purged . | . . . Corruption Blocked . | . . . Effects 21 | . 12 9 Message Errors 7 | . 4 3 Matter Fused 6 | . 3 3 Heat Flow Errors 1 | . 1 . Energy Discharges 2 | . 1 1 Data Loss (minor) 2 | . 2 . Misfires 2 | . . 2 Alerts 1 | . 1 . Overload Shots . | . . . Overflow Damage 7 | . . 7 Projectiles . | . . . Explosions 7 | . . 7 Melee . | . . . Knockbacks . | . . . Impact . | . . . Kinetic . | . . . Secondary . | . . . Self-Inflicted Damage 44 | . . 44 Shots 2 | . . 2 Rammed 1 | . 1 . Targets Rammed 1 | . 1 . Kicked . | . . . Crushed . | . . . Highest Temperature 269 | . 269 201 Average Temperature 48 | . 43 51 Received Heat Transfer 420 | . 204 216 Siege Activations . | . . . Robots Corrupted . | . . . Combat Hostiles . | . . . Parts Fried . | . . . Impact Corruptions . | . . . Robots Melted . | . . . Combat Hostiles . | . . . Parts Melted 1 | . 1 . Heat Transferred 1078 | . 150 928 Parts Sabotaged . | . . . Parts Stolen . | . . . Parts Stripped . | . . . Power Chain Reactions . | . . . Alert | -11 -10 -10 ------- Run | Yrd Mat Min Peak Influence 196 | . 126 196 Initial 27 | . . 27 Average 64 | . 52 76 Maximum Alert Level . | . . . Low Security (%) 100 | 100 100 100 Level 1 . | . . . Level 2 . | . . . Level 3 . | . . . Level 4 . | . . . Level 5 . | . . . High Security . | . . . Max Security . | . . . Squads Dispatched 3 | . 2 1 Investigation 1 | . . 1 Extermination . | . . . Reinforcement 2 | . 2 . Assault . | . . . Garrison . | . . . Intercept . | . . . Searches Triggered . | . . . Construction Impeded . | . . . Haulers Reinforced . | . . . Active Scanning Responses . | . . . Cargo Convoy Interrupts . | . . . Stealth | -11 -10 -10 --------- Run | Yrd Mat Min Distress Signals 1 | . 1 . Communications Jammed . | . . . Distress Signals . | . . . Times Spotted 36 | . 20 16 Peak Tracking Total 3 | . 3 3 Tactical Retreats 1 | . 1 . Traps | -11 -10 -10 ------- Run | Yrd Mat Min Traps Triggered . | . . . Indirectly . | . . . Trap Hack Attempts . | . . . Triggered . | . . . Disarmed . | . . . Reprogrammed . | . . . Reused . | . . . Traps Extracted . | . . . Installed . | . . . Triggered . | . . . Machines | -11 -10 -10 ---------- Run | Yrd Mat Min Machines Disabled . | . . . Max in Single Turn . | . . . Machines Repaired . | . . . Machines Dismantled . | . . . Machines Sabotaged . | . . . Overloaded Fab Kills . | . . . Hacking | -11 -10 -10 --------- Run | Yrd Mat Min Machines Accessed 4 | . 3 1 Terminals 3 | . 3 . Fabricators . | . . . Repair Stations . | . . . Recycling Units . | . . . Scanalyzers . | . . . Garrison Access . | . . . Total Hacks 10 | . 9 1 Successful 3 | . 2 1 Failed 7 | . 7 . Catastrophic . | . . . Database Lockouts . | . . . Manual 6 | . 6 . Terminals 9 | . 9 . Fabricators . | . . . Repair Stations . | . . . Recycling Units . | . . . Scanalyzers . | . . . Garrison Access . | . . . Terminal Hacks 3 | . 2 1 Part Schematic 1 | . 1 . Prototype ID Bank 1 | . 1 . Open Door 1 | . . 1 Fabricator Hacks . | . . . Repair Station Hacks . | . . . Recycling Unit Hacks . | . . . Scanalyzer . | . . . Garrison Access Hacks . | . . . Unauthorized Hacks . | . . . Terminals . | . . . Fabricators . | . . . Repair Stations . | . . . Recycling Units . | . . . Scanalyzers . | . . . Garrison Access . | . . . Data Cores Recovered . | . . . Used . | . . . Hacking Detections 3 | . 3 . Full Trace Events 1 | . 1 . Feedback Events 1 | . 1 . Corruption 1 | . 1 . Feedback Blocked . | . . . Robot Schematics Acquired . | . . . Robots Built . | . . . Authchips . | . . . Time . | . . . Total Robot Build Rating . | . . . Part Schematics Acquired 1 | . 1 . Parts Built . | . . . Authchips . | . . . Time . | . . . Total Part Build Rating . | . . . Parts Repaired . | . . . Time . | . . . Parts Recycled . | . . . Recycled Matter . | . . . Retrieved Matter . | . . . Retrieved Components . | . . . Parts Scanalyzed . | . . . Part Schematics Acquired . | . . . Parts Damaged . | . . . Bothacking | -11 -10 -10 ------------ Run | Yrd Mat Min Used RIF Installer . | . . . Robots Hacked . | . . . Non-combat . | . . . Combat . | . . . Robot Hacks Applied . | . . . Relay Couplers Released . | . . . Fabnet Peak Effective % . | . . . Robots Rewired . | . . . Allies Hacked . | . . . Hacks Repelled . | . . . Allies | -11 -10 -10 -------- Run | Yrd Mat Min Total Allies . | . . . Largest Group . | . . . Highest-Rated Group . | . . . Highest-Rated Ally . | . . . Total Orders . | . . . Ally Attacks . | . . . Total Damage . | . . . Kills . | . . . Allies Corrupted . | . . . Allies Melted . | . . . Intel | -11 -10 -10 ------- Run | Yrd Mat Min Robot Analysis Total . | . . . Derelict Logs Recovered . | . . . Drone Launches . | . . . Drone Recoveries . | . . . Exploration | -11 -10 -10 ------------- Run | Yrd Mat Min Turns Passed 3037 | 3 1543 1491 Spaces Moved 1102 | 1 535 566 Core . | . . . Treads 1102 | 1 535 566 Legs . | . . . Wheels . | . . . Hover . | . . . Flight . | . . . Fastest Speed 160 | 160 160 240 Average Speed 238 | 160 236 240 Slowest Speed 240 | 160 240 240 Overloaded Moves . | . . . Propulsion Burnouts . | . . . Robots Hopped . | . . . Cave-ins Triggered . | . . . Exploration Rate (%) 57 | 2 79 92 Regions Visited 2 Branch Regions 1 Pre-discovered Areas . | . . . Known Exits Taken . | . . . Unknown Exits Taken 2 | 1 1 . Scrap Searched 1 | . . 1 Spaces Dug . | . . . Terrain Destroyed 97 | . . 97 Melee . | . . . Projectile . | . . . AOE 97 | . . 97 Terrain Rammed . | . . . Walls Destroyed . | . . . Machines Disabled . | . . . Actions | -11 -10 -10 --------- Run | Yrd Mat Min Total 1381 | 2 734 645 Wait 144 | . 133 11 Move 1100 | . 534 566 Hop . | . . . Pick Up 23 | . 17 6 Fast Attach 2 | . 2 . Attach 2 | . 1 1 Detach . | . . . Swap 15 | 2 2 11 Drop 14 | . 3 11 Fire 77 | . 41 36 Melee 3 | . . 3 Ram . | . . . Kick . | . . . Crush 1 | . 1 . Escape Stasis . | . . . Rewire . | . . . Trap . | . . . Miscellaneous . | . . . Route ------- -11/Scrapyard -10/Materials (discovered 4 exits: [*Mat x3] / *Min) -10/Mines (discovered 2 exits: [*Mat x2]) History --------- Turn | Location | Event 4 | -11/Scrapyard | Discovered new exit (range 0) 4 | -11/Scrapyard | Entered Materials 312 | -10/Materials | Build established: Mutant 411 | -10/Materials | Discovered new exit (range 14) 426 | -10/Materials | Discovered new exit (range 15) 1030 | -10/Materials | Discovered new exit (range 7) 1143 | -10/Materials | Discovered new exit (range 14) 1547 | -10/Materials | Entered Mines 1554 | -10/Mines | Received a Rocket Launcher from a helpful Derelict 1640 | -10/Mines | A weapon hastily lodged in a ceiling crevice suddenly fell to the ground 2166 | -10/Mines | Core integrity fell below 50% 2366 | -10/Mines | Discovered new exit (range 14) 2528 | -10/Mines | Met a Derelict shopkeep closing up shop 2728 | -10/Mines | Excavation squad dispatched 2728 | -10/Mines | A large section of the Mines collapsed 2815 | -10/Mines | Core integrity fell below 20% 2875 | -10/Mines | Build established: Scavenger-Mutant 2894 | -10/Mines | Discovered new exit (range 6) 3038 | -10/Mines | Destroyed by G-34 Mercenary with Small Laser Last Messages --------------- 02845_ Dropped Heat Sink. 02846_ R-06 Scavenger collects Sml. Laser. 02847_ T-07 Excavator is excavating. 02847_ K-01 Serf collects debris. 02848_ T-07 Excavator is excavating. 02849_ R-06 Scavenger collects Ion Engine. 02850_ K-01 Serf collects debris. 02851_ T-07 Excavator is excavating. 02853_ K-01 Serf collects debris. 02853_ R-06 Scavenger collects Heat Sink. 02854_ T-07 Excavator is excavating. 02854_ Dropped Heat Sink. 02856_ T-07 Excavator is excavating. 02857_ R-06 Scavenger collects Ion Engine. 02858_ T-07 Excavator is excavating. 02894_ EXIT=FOUND 02930_ Searching scrap... 02930_ Found Power Shielding. 02930_ Found 48 Matter. 02931_ Acquired 20 matter. Map ----- +----------------------------------------------------+ | | | | | | | | | | | ?????????????????????????????????????????????? | | ?????????????????????????????????????????????? | | ?????????????????????????????????????????????? | | ?????????????????????????????????????????????? | | ?????????????????????????????????????????????? | | ?????????????????????????????????????????????? | | ?????????????????????????????????????????????? | | ?????????????????????????????????????????????? | | ???#???????????????###???????????????????????? | | # #??????????????## ##??????????????????????? | | #??????????????# ##?????????????????????? | | #??????????????# ####??????????????????? | | ##??????????????# #??????????????????? | | ###???????????????# #??????????????????? | | ??????????????????# < ##?????????????????? | | ????????########### #####?????????????? | | ????????# ##########????? | | #######?# ## !% #????? | | # ### ####### ### ######## #????? | | ## #????# k ##?# #??????# #????? | | " ## #???# #### @#??# #??????# #????? | | % #???# ##??# #??# #####??# #????? | | "" #??# #???# #??# ## #?## #????? | | ="######??# #???# #??# ## ### ##???? | | !###???????## ##???# #??# ## ## #???? | | ######?????????###?????# #??# ## #???? | | ##??????????????????# #??# ## ##???? | | ###???????????????????# #??# ##????? | | ##?????????????????????# $#??#### ##?????? | | #??????????????????????# #?????## ##??????? | | ???????????????????????#g #??????#####???????? | | #############??????????# g???????????????????? | | #??????????# ???????????????????? | | ########### #????####### ???????????????????? | | ??????????# #???##""""## ???????????????????? | | ??????????# #???#" !! "###???????????????????? | | ??????????# #???#" ! !"#?????????????????????? | | ??????????# #???##* ######?????????????????? | | ##????????# #???### #### ##????????????????? | | #????????# ##### X # #????????????????? | | #????????# # #????????????????? | | #????????##### #????????????????? | | #???####?????# #????????????????? | | #??## ##????## ##????????????????? | | #??# #####?## #?????????????????? | +----------------------------------------------------+ Best States ------------- Heat Dissipation 35 Energy Generation 10 Energy Capacity 250 Matter Stores 300 Matter Capacity 300 Sight Range 16 Terrain Scan Density 10 Armor Coverage 150 Evasion (%) 40 Recoil Reduction 2 Item Schematics ----------------- Lrg. Storage Unit | -10/Materials | Hacked Robot Schematics ------------------ None Fabricated ------------ Nothing Alien Tech Used ----------------- None Achievements -------------- None Challenges ------------ None Game ------ Seed SalvagingDroneFilter Manual? 0 Play Time 00:13:53 Cumulative 67.6 hours Start 2024.09.13 @ 11:53:31 End 2024.09.13 @ 12:07:19 Sessions 1 Manual Loads 0 Difficulty Rogue Special Mode None Game No. 92 Rogue 92 Adventurer 0 Explorer 0 Win Type - Total 1 Types 1/0/0/0/0/0/0/0/0 Lore% 15 Gallery% 51 Achievement% 40 Wizard Run 0 Options --------- Layout 0 ASCII 0 Keyboard 0 Movement Mouse Keybinds 1 Fullscreen 1 Font 18/TerminusBold Map View 76x50 Zoom Use 0% Tactical HUD 1 Map Filters NONE Filters NONE Steam 1 RUN: 561b2237-509b-4c74-8a90-87da2d37c36c